[Event "Early-Titled-Tuesday-Blitz-February-13-2024"]
[Site "Chess.com"]
[Date "2024.02.13"]
[Round "4"]
[White "Pertinhez76"]
[Black "Schattman"]
[Result "0-1"]
[WhiteElo "2168"]
[BlackElo "2386"]
[TimeControl "180+1"]
[EndTime "8:43:48 PST"]
[Termination "Schattman won by checkmate"]

1. e4 {[%clk 0:03:00.9]} 1... c6 {[%clk 0:02:51]} 2. Nc3 {[%clk 0:02:58.1]} 2...
d5 {[%clk 0:02:50.5]} 3. Nf3 {[%clk 0:02:58.1]} 3... Nf6 {[%clk 0:02:50.9]} 4.
d3 {[%clk 0:02:56.7]} 4... Bg4 {[%clk 0:02:48.9]} 5. h3 {[%clk 0:02:56.2]} 5...
Bh5 {[%clk 0:02:46.9]} 6. g4 {[%clk 0:02:52.4]} 6... Bg6 {[%clk 0:02:46.3]} 7.
Qe2 {[%clk 0:02:52.7]} 7... e6 {[%clk 0:02:31.5]} 8. Bg2 {[%clk 0:02:51.9]} 8...
Bb4 {[%clk 0:02:26.9]} 9. Bd2 {[%clk 0:02:51.8]} 9... d4 {[%clk 0:02:23.2]} 10.
Nb1 {[%clk 0:02:51.5]} 10... Bxd2+ {[%clk 0:02:21.3]} 11. Nbxd2 {[%clk
0:02:51.5]} 11... c5 {[%clk 0:02:21.6]} 12. a4 {[%clk 0:02:49.7]} 12... Nc6
{[%clk 0:02:21]} 13. Nc4 {[%clk 0:02:49.7]} 13... Qc7 {[%clk 0:02:19.8]} 14. a5
{[%clk 0:02:48.8]} 14... e5 {[%clk 0:02:16.5]} 15. a6 {[%clk 0:02:38.6]} 15...
b5 {[%clk 0:02:09.3]} 16. Na3 {[%clk 0:02:38.5]} 16... Rb8 {[%clk 0:02:09.6]}
17. c4 {[%clk 0:02:34.9]} 17... dxc3 {[%clk 0:02:02.8]} 18. bxc3 {[%clk
0:02:34.2]} 18... O-O {[%clk 0:01:59.7]} 19. O-O {[%clk 0:02:34.1]} 19... Rfd8
{[%clk 0:01:43.7]} 20. Rfb1 {[%clk 0:02:29.7]} 20... b4 {[%clk 0:01:43.8]} 21.
cxb4 {[%clk 0:02:18.5]} 21... Nxb4 {[%clk 0:01:43.2]} 22. Rb3 {[%clk 0:02:08.8]}
22... Nxa6 {[%clk 0:01:40.1]} 23. Rc3 {[%clk 0:02:07.8]} 23... Nd7 {[%clk
0:01:26.9]} 24. Nc4 {[%clk 0:01:55.2]} 24... Nb4 {[%clk 0:01:25.3]} 25. Rca3
{[%clk 0:01:50.4]} 25... Ra8 {[%clk 0:01:24]} 26. Bf1 {[%clk 0:01:43.5]} 26...
f6 {[%clk 0:01:24.2]} 27. Nh4 {[%clk 0:01:31.7]} 27... Bf7 {[%clk 0:01:21.6]}
28. Nf5 {[%clk 0:01:31.8]} 28... Bxc4 {[%clk 0:01:19.8]} 29. dxc4 {[%clk
0:01:31.4]} 29... Nc6 {[%clk 0:01:10]} 30. Qa2 {[%clk 0:01:24.7]} 30... a5
{[%clk 0:00:57.2]} 31. Ne3 {[%clk 0:01:16.1]} 31... Nb4 {[%clk 0:00:42.2]} 32.
Rxa5 {[%clk 0:01:11.8]} 32... Nxa2 {[%clk 0:00:38.7]} 33. R5xa2 {[%clk
0:01:00.4]} 33... Rxa2 {[%clk 0:00:36.9]} 34. Rxa2 {[%clk 0:01:01.3]} 34... Nb6
{[%clk 0:00:36.7]} 35. Be2 {[%clk 0:00:55.5]} 35... g6 {[%clk 0:00:35.6]} 36. h4
{[%clk 0:00:54]} 36... Kg7 {[%clk 0:00:35.3]} 37. Ra6 {[%clk 0:00:50.6]} 37...
Kh6 {[%clk 0:00:34.4]} 38. Kg2 {[%clk 0:00:49.3]} 38... Ra8 {[%clk 0:00:31.7]}
39. Rxa8 {[%clk 0:00:48.2]} 39... Nxa8 {[%clk 0:00:31]} 40. Nd5 {[%clk
0:00:48.8]} 40... Qd6 {[%clk 0:00:29.3]} 41. Kg3 {[%clk 0:00:48.7]} 41... Nb6
{[%clk 0:00:27.1]} 42. Ne3 {[%clk 0:00:44.4]} 42... Qd2 {[%clk 0:00:21]} 43. Bf1
{[%clk 0:00:44.3]} 43... Na4 {[%clk 0:00:19.5]} 44. Nd5 {[%clk 0:00:39.2]} 44...
Kg7 {[%clk 0:00:16.4]} 45. Ne3 {[%clk 0:00:30.1]} 45... Nc3 {[%clk 0:00:14.1]}
46. Bg2 {[%clk 0:00:28.6]} 46... Nd1 {[%clk 0:00:13.2]} 47. Nxd1 {[%clk
0:00:23.3]} 47... Qxd1 {[%clk 0:00:13]} 48. Bf3 {[%clk 0:00:20.1]} 48... Qd3
{[%clk 0:00:10.9]} 49. Kg2 {[%clk 0:00:19.2]} 49... Qxc4 {[%clk 0:00:11]} 50.
Kg3 {[%clk 0:00:19.5]} 50... Qd4 {[%clk 0:00:10.9]} 51. g5 {[%clk 0:00:19.6]}
51... c4 {[%clk 0:00:11.3]} 52. gxf6+ {[%clk 0:00:19.7]} 52... Kxf6 {[%clk
0:00:12.2]} 53. h5 {[%clk 0:00:20.4]} 53... gxh5 {[%clk 0:00:11.9]} 54. Kh4
{[%clk 0:00:18.4]} 54... Qd2 {[%clk 0:00:09.7]} 55. Kg3 {[%clk 0:00:17.7]} 55...
Qf4+ {[%clk 0:00:09]} 56. Kg2 {[%clk 0:00:17.3]} 56... h4 {[%clk 0:00:08.9]} 57.
Bd1 {[%clk 0:00:16.2]} 57... c3 {[%clk 0:00:08.8]} 58. Ba4 {[%clk 0:00:15.5]}
58... Qd2 {[%clk 0:00:07.1]} 59. Kf3 {[%clk 0:00:14.3]} 59... c2 {[%clk
0:00:07.3]} 60. Bxc2 {[%clk 0:00:13.5]} 60... Qxc2 {[%clk 0:00:08.2]} 61. Kg4
{[%clk 0:00:13.9]} 61... Qxe4+ {[%clk 0:00:07.8]} 62. f4 {[%clk 0:00:14.8]}
62... Qxf4+ {[%clk 0:00:07.7]} 63. Kh3 {[%clk 0:00:15]} 63... Qg3# {[%clk
0:00:07.5]} 0-1

[Event "Early-Titled-Tuesday-Blitz-February-13-2024"]
[Site "Chess.com"]
[Date "2024.02.13"]
[Round "4"]
[White "pifion"]
[Black "omer1997"]
[Result "1-0"]
[WhiteElo "2673"]
[BlackElo "2401"]
[TimeControl "180+1"]
[EndTime "8:43:49 PST"]
[Termination "pifion won by checkmate"]

1. d4 {[%clk 0:03:00.9]} 1... d5 {[%clk 0:02:59.1]} 2. c4 {[%clk 0:03:00.7]}
2... c6 {[%clk 0:02:59]} 3. Nf3 {[%clk 0:03:01.3]} 3... Nf6 {[%clk 0:02:58.9]}
4. e3 {[%clk 0:03:01.9]} 4... Bf5 {[%clk 0:02:56.4]} 5. Nc3 {[%clk 0:03:01.4]}
5... e6 {[%clk 0:02:56.8]} 6. Nh4 {[%clk 0:03:01.5]} 6... Be4 {[%clk 0:02:57.2]}
7. f3 {[%clk 0:03:00.1]} 7... Bg6 {[%clk 0:02:57.4]} 8. Qb3 {[%clk 0:02:43]}
8... Qc7 {[%clk 0:02:55.5]} 9. Bd2 {[%clk 0:02:40.5]} 9... Nbd7 {[%clk 0:02:45]}
10. O-O-O {[%clk 0:02:32.6]} 10... Be7 {[%clk 0:02:40.5]} 11. Nxg6 {[%clk
0:02:27.7]} 11... hxg6 {[%clk 0:02:41.4]} 12. g3 {[%clk 0:02:26.4]} 12... a6
{[%clk 0:02:23.6]} 13. Kb1 {[%clk 0:02:25.9]} 13... dxc4 {[%clk 0:02:22.6]} 14.
Bxc4 {[%clk 0:02:25]} 14... b5 {[%clk 0:02:23.2]} 15. Be2 {[%clk 0:02:25.1]}
15... c5 {[%clk 0:02:23.7]} 16. dxc5 {[%clk 0:02:14.7]} 16... Nxc5 {[%clk
0:02:21.4]} 17. Qc2 {[%clk 0:02:15]} 17... O-O {[%clk 0:02:14.9]} 18. Rc1 {[%clk
0:02:15.2]} 18... Qb7 {[%clk 0:01:56.2]} 19. e4 {[%clk 0:02:07.9]} 19... Rac8
{[%clk 0:01:51.9]} 20. Be3 {[%clk 0:01:44.9]} 20... b4 {[%clk 0:01:43.8]} 21.
Na4 {[%clk 0:01:44.7]} 21... Ncxe4 {[%clk 0:01:40.9]} 22. Qd3 {[%clk 0:01:44.8]}
22... Nd6 {[%clk 0:01:13.2]} 23. Nc5 {[%clk 0:01:39.8]} 23... Qd5 {[%clk
0:01:07]} 24. Nxa6 {[%clk 0:01:37.4]} 24... Qxd3+ {[%clk 0:00:58.6]} 25. Bxd3
{[%clk 0:01:36.3]} 25... Nd5 {[%clk 0:00:59.5]} 26. Bd4 {[%clk 0:01:32.2]} 26...
Nf5 {[%clk 0:00:55]} 27. Bf2 {[%clk 0:01:25.4]} 27... Bf6 {[%clk 0:00:37.9]} 28.
Be4 {[%clk 0:01:03.6]} 28... Nfe7 {[%clk 0:00:09.2]} 29. Nc5 {[%clk 0:00:56]}
29... Rfd8 {[%clk 0:00:07.1]} 30. Nb7 {[%clk 0:00:53.4]} 30... Rd7 {[%clk
0:00:07.1]} 31. Rxc8+ {[%clk 0:00:52.2]} 31... Nxc8 {[%clk 0:00:08]} 32. Nc5
{[%clk 0:00:52.4]} 32... Rc7 {[%clk 0:00:06.8]} 33. Bxd5 {[%clk 0:00:52.3]}
33... exd5 {[%clk 0:00:07.7]} 34. Rd1 {[%clk 0:00:52.1]} 34... Ne7 {[%clk
0:00:07.9]} 35. Nb3 {[%clk 0:00:49.8]} 35... Kf8 {[%clk 0:00:07.5]} 36. Bc5
{[%clk 0:00:48.6]} 36... Ke8 {[%clk 0:00:07.9]} 37. Bxb4 {[%clk 0:00:46.6]}
37... Nc6 {[%clk 0:00:05.8]} 38. Bc5 {[%clk 0:00:45.9]} 38... Rd7 {[%clk
0:00:03.2]} 39. Nd4 {[%clk 0:00:44.8]} 39... Bxd4 {[%clk 0:00:02]} 40. Bxd4
{[%clk 0:00:44.5]} 40... f6 {[%clk 0:00:02.9]} 41. Kc2 {[%clk 0:00:43.8]} 41...
Rb7 {[%clk 0:00:03.5]} 42. b3 {[%clk 0:00:43.4]} 42... Kd7 {[%clk 0:00:04.1]}
43. Kb2 {[%clk 0:00:43.6]} 43... Ke6 {[%clk 0:00:04.4]} 44. Re1+ {[%clk
0:00:43.1]} 44... Kd6 {[%clk 0:00:04.8]} 45. Bf2 {[%clk 0:00:42.4]} 45... Rc7
{[%clk 0:00:03.6]} 46. a3 {[%clk 0:00:41.6]} 46... Ne5 {[%clk 0:00:03.3]} 47.
Re3 {[%clk 0:00:41.3]} 47... d4 {[%clk 0:00:03.1]} 48. Re2 {[%clk 0:00:38.2]}
48... Nd3+ {[%clk 0:00:03.7]} 49. Kb1 {[%clk 0:00:37.7]} 49... Rc1+ {[%clk
0:00:02.3]} 50. Ka2 {[%clk 0:00:37.6]} 50... Nxf2 {[%clk 0:00:01.3]} 51. Rxf2
{[%clk 0:00:37.6]} 51... d3 {[%clk 0:00:02.2]} 52. Rd2 {[%clk 0:00:37.6]} 52...
Rh1 {[%clk 0:00:01.8]} 53. Rxd3+ {[%clk 0:00:37.5]} 53... Kc5 {[%clk 0:00:02.7]}
54. Rd2 {[%clk 0:00:38.4]} 54... Rg1 {[%clk 0:00:03]} 55. Kb2 {[%clk 0:00:38.6]}
55... Kb5 {[%clk 0:00:03.3]} 56. Rc2 {[%clk 0:00:38.9]} 56... Rf1 {[%clk
0:00:04.2]} 57. a4+ {[%clk 0:00:38.7]} 57... Kb4 {[%clk 0:00:03.9]} 58. Rc4+
{[%clk 0:00:38.9]} 58... Ka5 {[%clk 0:00:04.6]} 59. Ka3 {[%clk 0:00:39.2]} 59...
Rxf3 {[%clk 0:00:04.8]} 60. Rc7 {[%clk 0:00:38.4]} 60... Rf2 {[%clk 0:00:04.4]}
61. Rxg7 {[%clk 0:00:38.5]} 61... g5 {[%clk 0:00:05.3]} 62. Rg6 {[%clk
0:00:38.6]} 62... Rxh2 {[%clk 0:00:04.4]} 63. Rxf6 {[%clk 0:00:38.7]} 63... g4
{[%clk 0:00:04.4]} 64. Rf4 {[%clk 0:00:38.5]} 64... Kb6 {[%clk 0:00:04.5]} 65.
Rxg4 {[%clk 0:00:38.9]} 65... Kc5 {[%clk 0:00:05.4]} 66. Rc4+ {[%clk 0:00:39]}
66... Kd5 {[%clk 0:00:05.7]} 67. a5 {[%clk 0:00:39.4]} 67... Rh1 {[%clk
0:00:05.4]} 68. Ka4 {[%clk 0:00:39.7]} 68... Ra1+ {[%clk 0:00:05.6]} 69. Kb5
{[%clk 0:00:39.7]} 69... Rb1 {[%clk 0:00:06.5]} 70. Rb4 {[%clk 0:00:40]} 70...
Ra1 {[%clk 0:00:07.4]} 71. g4 {[%clk 0:00:40]} 71... Kd6 {[%clk 0:00:07.2]} 72.
a6 {[%clk 0:00:40.3]} 72... Kc7 {[%clk 0:00:07.8]} 73. Rc4+ {[%clk 0:00:39.3]}
73... Kb8 {[%clk 0:00:07.9]} 74. Kb6 {[%clk 0:00:39.2]} 74... Re1 {[%clk
0:00:06.6]} 75. a7+ {[%clk 0:00:39.3]} 75... Ka8 {[%clk 0:00:06.8]} 76. Rc8#
{[%clk 0:00:40.2]} 1-0

[Event "Early-Titled-Tuesday-Blitz-February-13-2024"]
[Site "Chess.com"]
[Date "2024.02.13"]
[Round "4"]
[White "wild3000"]
[Black "norwaytoadog"]
[Result "0-1"]
[WhiteElo "2401"]
[BlackElo "2209"]
[TimeControl "180+1"]
[EndTime "8:43:51 PST"]
[Termination "norwaytoadog won by checkmate"]

1. d4 {[%clk 0:03:00]} 1... Nf6 {[%clk 0:02:58.7]} 2. c4 {[%clk 0:02:59.4]} 2...
e6 {[%clk 0:02:59.1]} 3. Nf3 {[%clk 0:02:59.4]} 3... Bb4+ {[%clk 0:02:58.7]} 4.
Bd2 {[%clk 0:02:58.7]} 4... c5 {[%clk 0:02:58.9]} 5. dxc5 {[%clk 0:02:57.8]}
5... Bxc5 {[%clk 0:02:55.6]} 6. e3 {[%clk 0:02:58.2]} 6... O-O {[%clk
0:02:41.4]} 7. Be2 {[%clk 0:02:58.2]} 7... d5 {[%clk 0:02:39.5]} 8. O-O {[%clk
0:02:57.5]} 8... Nc6 {[%clk 0:02:39.3]} 9. Nc3 {[%clk 0:02:56.3]} 9... a6 {[%clk
0:02:36.8]} 10. a3 {[%clk 0:02:56.2]} 10... dxc4 {[%clk 0:02:34.3]} 11. Bxc4
{[%clk 0:02:57.1]} 11... b5 {[%clk 0:02:34.6]} 12. Be2 {[%clk 0:02:52.8]} 12...
Bb7 {[%clk 0:02:34.9]} 13. b4 {[%clk 0:02:52.8]} 13... Bb6 {[%clk 0:02:30.5]}
14. Rc1 {[%clk 0:02:51.9]} 14... Qe7 {[%clk 0:02:30.2]} 15. Qb3 {[%clk
0:02:51.5]} 15... Rfd8 {[%clk 0:02:26]} 16. Rfd1 {[%clk 0:02:51.5]} 16... e5
{[%clk 0:02:21.3]} 17. Ng5 {[%clk 0:02:47.4]} 17... h6 {[%clk 0:01:55.4]} 18.
Nge4 {[%clk 0:02:47.1]} 18... Nd4 {[%clk 0:01:28.4]} 19. Nxf6+ {[%clk
0:02:40.7]} 19... Qxf6 {[%clk 0:01:27.6]} 20. exd4 {[%clk 0:02:40.8]} 20... exd4
{[%clk 0:01:27.4]} 21. Nxb5 {[%clk 0:02:02.6]} 21... d3 {[%clk 0:01:16.3]} 22.
Bf3 {[%clk 0:01:32.8]} 22... Bxf3 {[%clk 0:01:07.5]} 23. gxf3 {[%clk 0:01:32.9]}
23... Qxf3 {[%clk 0:01:00.5]} 24. Be3 {[%clk 0:00:58.6]} 24... Bxe3 {[%clk
0:00:54.4]} 25. fxe3 {[%clk 0:00:59.5]} 25... Rd5 {[%clk 0:00:46.8]} 26. Qxd5
{[%clk 0:00:49.3]} 26... Qxd5 {[%clk 0:00:46]} 27. Nd4 {[%clk 0:00:46.9]} 27...
Qg5+ {[%clk 0:00:39.9]} 28. Kf2 {[%clk 0:00:46.8]} 28... Qh4+ {[%clk 0:00:39.3]}
29. Kg2 {[%clk 0:00:41.9]} 29... Re8 {[%clk 0:00:34.6]} 30. Nf3 {[%clk
0:00:20.2]} 30... Qg4+ {[%clk 0:00:31.6]} 31. Kf2 {[%clk 0:00:20.4]} 31... Re6
{[%clk 0:00:21]} 32. Rxd3 {[%clk 0:00:18.3]} 32... Rf6 {[%clk 0:00:20.8]} 33. e4
{[%clk 0:00:18.5]} 33... Qxe4 {[%clk 0:00:20.5]} 34. Rcc3 {[%clk 0:00:18.7]}
34... g5 {[%clk 0:00:18]} 35. Re3 {[%clk 0:00:18.8]} 35... Qd4 {[%clk
0:00:16.1]} 36. h3 {[%clk 0:00:17.7]} 36... h5 {[%clk 0:00:15.2]} 37. Rd3 {[%clk
0:00:16.6]} 37... Qb2+ {[%clk 0:00:14.8]} 38. Re2 {[%clk 0:00:16.7]} 38... Qc1
{[%clk 0:00:14.6]} 39. Kg2 {[%clk 0:00:16.3]} 39... g4 {[%clk 0:00:13.8]} 40.
hxg4 {[%clk 0:00:16.3]} 40... hxg4 {[%clk 0:00:13.9]} 41. Ne1 {[%clk 0:00:15.7]}
41... Qf4 {[%clk 0:00:13.3]} 42. Rg3 {[%clk 0:00:14.6]} 42... Qf1+ {[%clk
0:00:12.9]} 43. Kh2 {[%clk 0:00:13.9]} 43... Qxe2+ {[%clk 0:00:13]} 44. Ng2
{[%clk 0:00:14.6]} 44... Rg6 {[%clk 0:00:11]} 45. a4 {[%clk 0:00:13.3]} 45...
Rh6+ {[%clk 0:00:11]} 46. Kg1 {[%clk 0:00:12.9]} 46... Qd1+ {[%clk 0:00:11.2]}
47. Kf2 {[%clk 0:00:13.2]} 47... Rf6+ {[%clk 0:00:11.3]} 48. Ke3 {[%clk
0:00:12.2]} 48... Rf3+ {[%clk 0:00:11.5]} 49. Rxf3 {[%clk 0:00:12.2]} 49...
Qxf3+ {[%clk 0:00:11.6]} 50. Kd4 {[%clk 0:00:12.2]} 50... Qxg2 {[%clk
0:00:11.8]} 51. Kc5 {[%clk 0:00:13.1]} 51... Qb7 {[%clk 0:00:11.4]} 52. b5
{[%clk 0:00:13]} 52... axb5 {[%clk 0:00:11.5]} 53. axb5 {[%clk 0:00:13.9]} 53...
g3 {[%clk 0:00:11.7]} 54. b6 {[%clk 0:00:14.2]} 54... g2 {[%clk 0:00:11.8]} 55.
Kb5 {[%clk 0:00:14.5]} 55... g1=Q {[%clk 0:00:10.9]} 56. Kc4 {[%clk 0:00:15.4]}
56... Qc1+ {[%clk 0:00:10.6]} 57. Kd3 {[%clk 0:00:14.2]} 57... Qd7+ {[%clk
0:00:10.6]} 58. Ke4 {[%clk 0:00:13.8]} 58... Qe6+ {[%clk 0:00:10.7]} 59. Kf3
{[%clk 0:00:13.7]} 59... Qf1+ {[%clk 0:00:10.5]} 60. Kg3 {[%clk 0:00:13]} 60...
Qg6+ {[%clk 0:00:10.8]} 61. Kh2 {[%clk 0:00:12.7]} 61... Qfg2# {[%clk
0:00:10.8]} 0-1

[Event "Early-Titled-Tuesday-Blitz-February-13-2024"]
[Site "Chess.com"]
[Date "2024.02.13"]
[Round "4"]
[White "chess_blitz00"]
[Black "karinachess1"]
[Result "1-0"]
[WhiteElo "2477"]
[BlackElo "2674"]
[TimeControl "180+1"]
[EndTime "8:43:52 PST"]
[Termination "chess_blitz00 won on time"]

1. Nc3 {[%clk 0:03:00.9]} 1... d5 {[%clk 0:02:58.3]} 2. d3 {[%clk 0:02:54.3]}
2... Nf6 {[%clk 0:02:55.2]} 3. e4 {[%clk 0:02:52.6]} 3... e5 {[%clk 0:02:55.4]}
4. Bg5 {[%clk 0:02:46.1]} 4... d4 {[%clk 0:02:43.1]} 5. Nd5 {[%clk 0:02:44.7]}
5... Be7 {[%clk 0:02:43.6]} 6. Nxe7 {[%clk 0:02:21.1]} 6... Qxe7 {[%clk
0:02:44.5]} 7. Qd2 {[%clk 0:02:21.1]} 7... O-O {[%clk 0:02:36.7]} 8. h3 {[%clk
0:01:03.4]} 8... c5 {[%clk 0:02:32.2]} 9. f4 {[%clk 0:00:55.6]} 9... exf4 {[%clk
0:02:29.3]} 10. Qxf4 {[%clk 0:00:54.8]} 10... Nbd7 {[%clk 0:02:23.8]} 11. Nf3
{[%clk 0:00:47.8]} 11... h6 {[%clk 0:02:24.3]} 12. Bh4 {[%clk 0:00:40.2]} 12...
Re8 {[%clk 0:02:11]} 13. Be2 {[%clk 0:00:36.1]} 13... Ne5 {[%clk 0:02:10.3]} 14.
O-O {[%clk 0:00:23.1]} 14... Ng6 {[%clk 0:02:05.1]} 15. Bxf6 {[%clk 0:00:21.6]}
15... Nxf4 {[%clk 0:02:02.7]} 16. Bxe7 {[%clk 0:00:21.7]} 16... Nxe2+ {[%clk
0:02:03.4]} 17. Kf2 {[%clk 0:00:21.8]} 17... Rxe7 {[%clk 0:02:01.5]} 18. Kxe2
{[%clk 0:00:21.9]} 18... Be6 {[%clk 0:02:00.3]} 19. g4 {[%clk 0:00:18.7]} 19...
Rd7 {[%clk 0:01:49.5]} 20. b3 {[%clk 0:00:18.5]} 20... Rc8 {[%clk 0:01:32.7]}
21. a4 {[%clk 0:00:18.3]} 21... f6 {[%clk 0:01:30.2]} 22. Rf2 {[%clk 0:00:18.4]}
22... Rf7 {[%clk 0:01:20.3]} 23. Rg1 {[%clk 0:00:18.4]} 23... Kf8 {[%clk
0:01:20.3]} 24. h4 {[%clk 0:00:17.4]} 24... Ke7 {[%clk 0:01:20.8]} 25. Nd2
{[%clk 0:00:13.3]} 25... Rh8 {[%clk 0:01:17.1]} 26. Nc4 {[%clk 0:00:07.6]} 26...
h5 {[%clk 0:01:12.1]} 27. g5 {[%clk 0:00:05.7]} 27... Bg4+ {[%clk 0:01:11.9]}
28. Ke1 {[%clk 0:00:03]} 28... Rff8 {[%clk 0:01:03.3]} 29. gxf6+ {[%clk
0:00:02.5]} 29... gxf6 {[%clk 0:00:59.7]} 30. Na5 {[%clk 0:00:02.7]} 30... Rb8
{[%clk 0:00:53.4]} 31. Rgf1 {[%clk 0:00:02.5]} 31... Rhf8 {[%clk 0:00:53.4]} 32.
Nc4 {[%clk 0:00:02.9]} 32... Ke6 {[%clk 0:00:44.4]} 33. Rg1 {[%clk 0:00:03.1]}
33... b6 {[%clk 0:00:42]} 34. Nd2 {[%clk 0:00:03.1]} 34... Rg8 {[%clk
0:00:40.1]} 35. Nf1 {[%clk 0:00:03.4]} 35... f5 {[%clk 0:00:36.1]} 36. exf5+
{[%clk 0:00:03.3]} 36... Bxf5 {[%clk 0:00:37]} 37. Rxg8 {[%clk 0:00:03.4]} 37...
Rxg8 {[%clk 0:00:37.7]} 38. Kd2 {[%clk 0:00:03.7]} 38... Rg4 {[%clk 0:00:36.1]}
39. Nh2 {[%clk 0:00:03.5]} 39... Rxh4 {[%clk 0:00:32.3]} 40. Nf3 {[%clk
0:00:04.1]} 40... Rg4 {[%clk 0:00:23.1]} 41. Re2+ {[%clk 0:00:04.1]} 41... Kd6
{[%clk 0:00:19.9]} 42. Rh2 {[%clk 0:00:03.5]} 42... Bg6 {[%clk 0:00:19.3]} 43.
Ke2 {[%clk 0:00:03.2]} 43... Bf7 {[%clk 0:00:16.5]} 44. Kf2 {[%clk 0:00:03.1]}
44... a6 {[%clk 0:00:15.6]} 45. Rh4 {[%clk 0:00:03.2]} 45... b5 {[%clk
0:00:14.8]} 46. axb5 {[%clk 0:00:03.2]} 46... axb5 {[%clk 0:00:15.7]} 47. Rxg4
{[%clk 0:00:03.5]} 47... hxg4 {[%clk 0:00:16.6]} 48. Nh2 {[%clk 0:00:04.1]}
48... Be6 {[%clk 0:00:05.7]} 49. Kg3 {[%clk 0:00:04.5]} 49... c4 {[%clk
0:00:03.7]} 50. bxc4 {[%clk 0:00:02.2]} 50... bxc4 {[%clk 0:00:04.6]} 51. Nxg4
{[%clk 0:00:02]} 51... cxd3 {[%clk 0:00:03.7]} 52. cxd3 {[%clk 0:00:01.9]} 52...
Kc5 {[%clk 0:00:02.1]} 53. Nf2 {[%clk 0:00:02]} 53... Bf5 {[%clk 0:00:01.4]} 54.
Kf4 {[%clk 0:00:02.9]} 54... Bg6 {[%clk 0:00:01.2]} 55. Ke5 {[%clk 0:00:03]} 1-0

[Event "Early-Titled-Tuesday-Blitz-February-13-2024"]
[Site "Chess.com"]
[Date "2024.02.13"]
[Round "4"]
[White "Dewarfd"]
[Black "NowInChess"]
[Result "1/2-1/2"]
[WhiteElo "2159"]
[BlackElo "2313"]
[TimeControl "180+1"]
[EndTime "8:43:52 PST"]
[Termination "Game drawn - insufficient material"]

1. d4 {[%clk 0:02:59.5]} 1... Nf6 {[%clk 0:02:59.8]} 2. e3 {[%clk 0:02:59.5]}
2... g6 {[%clk 0:02:59.6]} 3. Nf3 {[%clk 0:02:57.7]} 3... Bg7 {[%clk 0:02:59.9]}
4. b4 {[%clk 0:02:58.2]} 4... O-O {[%clk 0:02:59.5]} 5. Bb2 {[%clk 0:02:58.2]}
5... d6 {[%clk 0:02:59.9]} 6. c4 {[%clk 0:02:56.8]} 6... Nbd7 {[%clk 0:02:59.7]}
7. Nc3 {[%clk 0:02:55.8]} 7... Re8 {[%clk 0:02:59.6]} 8. Be2 {[%clk 0:02:55.4]}
8... e5 {[%clk 0:02:56.5]} 9. O-O {[%clk 0:02:54.8]} 9... e4 {[%clk 0:02:55.7]}
10. Nd2 {[%clk 0:02:54.4]} 10... h5 {[%clk 0:02:55.7]} 11. d5 {[%clk 0:02:54]}
11... Nf8 {[%clk 0:02:48.8]} 12. Qc2 {[%clk 0:02:52.5]} 12... Bf5 {[%clk
0:02:48.3]} 13. Nb3 {[%clk 0:02:51.5]} 13... N8h7 {[%clk 0:02:44.6]} 14. Nd4
{[%clk 0:02:50.2]} 14... Bg4 {[%clk 0:02:40]} 15. h3 {[%clk 0:02:44.8]} 15...
Bxe2 {[%clk 0:02:37.8]} 16. Ndxe2 {[%clk 0:02:44.7]} 16... h4 {[%clk 0:02:36.5]}
17. Nb5 {[%clk 0:02:16]} 17... Qd7 {[%clk 0:02:30.9]} 18. Bxf6 {[%clk
0:02:11.1]} 18... Bxf6 {[%clk 0:02:25.1]} 19. Rad1 {[%clk 0:02:00.9]} 19... Be5
{[%clk 0:02:24.5]} 20. Nbd4 {[%clk 0:01:51.7]} 20... Ng5 {[%clk 0:02:23.4]} 21.
f4 {[%clk 0:01:48.9]} 21... exf3 {[%clk 0:02:22.3]} 22. Nxf3 {[%clk 0:01:48.5]}
22... Nxf3+ {[%clk 0:02:17.4]} 23. Rxf3 {[%clk 0:01:48.1]} 23... Bg7 {[%clk
0:02:15.4]} 24. Rdf1 {[%clk 0:01:45.8]} 24... Re7 {[%clk 0:02:14.6]} 25. Qd3
{[%clk 0:01:27.9]} 25... a5 {[%clk 0:02:12.8]} 26. a3 {[%clk 0:01:24.3]} 26...
axb4 {[%clk 0:02:12.1]} 27. axb4 {[%clk 0:01:25.2]} 27... Ra2 {[%clk 0:02:11.8]}
28. c5 {[%clk 0:01:21.9]} 28... Qa4 {[%clk 0:02:04.3]} 29. cxd6 {[%clk
0:01:09.7]} 29... cxd6 {[%clk 0:02:02.3]} 30. Nc3 {[%clk 0:00:49.8]} 30... Bxc3
{[%clk 0:01:46.7]} 31. Qxc3 {[%clk 0:00:48.7]} 31... Qc2 {[%clk 0:01:46.6]} 32.
Qxc2 {[%clk 0:00:37.1]} 32... Rxc2 {[%clk 0:01:47.5]} 33. Rf4 {[%clk 0:00:18.6]}
33... Rd2 {[%clk 0:01:35.6]} 34. e4 {[%clk 0:00:16.8]} 34... Rb2 {[%clk
0:01:32.4]} 35. Rxh4 {[%clk 0:00:09.4]} 35... Rxb4 {[%clk 0:01:30.4]} 36. Re1
{[%clk 0:00:08.5]} 36... Re5 {[%clk 0:01:30.2]} 37. Rg4 {[%clk 0:00:04.9]} 37...
Kg7 {[%clk 0:01:28]} 38. Kh2 {[%clk 0:00:05.2]} 38... f5 {[%clk 0:01:24.6]} 39.
Rg5 {[%clk 0:00:02.2]} 39... Kf6 {[%clk 0:01:19.4]} 40. Rg3 {[%clk 0:00:02.1]}
40... f4 {[%clk 0:01:17.2]} 41. Rf3 {[%clk 0:00:02.1]} 41... Rbxe4 {[%clk
0:01:17.5]} 42. Rxe4 {[%clk 0:00:02.2]} 42... Rxe4 {[%clk 0:01:18]} 43. g3
{[%clk 0:00:02.4]} 43... g5 {[%clk 0:01:17.3]} 44. gxf4 {[%clk 0:00:02.3]} 44...
Rxf4 {[%clk 0:01:17.5]} 45. Rb3 {[%clk 0:00:02.4]} 45... Ke5 {[%clk 0:01:16.4]}
46. Rxb7 {[%clk 0:00:02.2]} 46... Kxd5 {[%clk 0:01:16.6]} 47. Kg3 {[%clk
0:00:02.8]} 47... Ke5 {[%clk 0:01:15.6]} 48. Re7+ {[%clk 0:00:02.3]} 48... Kf6
{[%clk 0:01:15.6]} 49. Rd7 {[%clk 0:00:01.9]} 49... Ke6 {[%clk 0:01:15.4]} 50.
Rg7 {[%clk 0:00:01.8]} 50... Rf5 {[%clk 0:01:15.8]} 51. Kg4 {[%clk 0:00:01.7]}
51... Re5 {[%clk 0:01:15.1]} 52. Rxg5 {[%clk 0:00:01.7]} 52... Rxg5+ {[%clk
0:01:14.6]} 53. Kxg5 {[%clk 0:00:02.6]} 53... d5 {[%clk 0:01:15.4]} 54. h4
{[%clk 0:00:01.4]} 54... d4 {[%clk 0:01:16.3]} 55. h5 {[%clk 0:00:02]} 55... d3
{[%clk 0:01:17.2]} 56. h6 {[%clk 0:00:02.5]} 56... d2 {[%clk 0:01:18.1]} 57. h7
{[%clk 0:00:03]} 57... d1=Q {[%clk 0:01:18.6]} 58. h8=Q {[%clk 0:00:03.1]} 58...
Qg1+ {[%clk 0:01:17.3]} 59. Kf4 {[%clk 0:00:03]} 59... Qf2+ {[%clk 0:01:17.7]}
60. Ke4 {[%clk 0:00:02.6]} 60... Qe2+ {[%clk 0:01:17.9]} 61. Kf4 {[%clk
0:00:02.6]} 61... Qd2+ {[%clk 0:01:17.1]} 62. Ke4 {[%clk 0:00:02.6]} 62... Qc2+
{[%clk 0:01:16.3]} 63. Kf4 {[%clk 0:00:02.7]} 63... Qf2+ {[%clk 0:01:15.8]} 64.
Ke4 {[%clk 0:00:02.9]} 64... Qe2+ {[%clk 0:01:15.7]} 65. Kf4 {[%clk 0:00:03.2]}
65... Qf1+ {[%clk 0:01:15.3]} 66. Ke4 {[%clk 0:00:03.4]} 66... Qc4+ {[%clk
0:01:15.2]} 67. Ke3 {[%clk 0:00:03.6]} 67... Qb3+ {[%clk 0:01:12]} 68. Ke4
{[%clk 0:00:03.8]} 68... Qb1+ {[%clk 0:01:10.8]} 69. Ke3 {[%clk 0:00:04]} 69...
Qc1+ {[%clk 0:01:09.9]} 70. Ke4 {[%clk 0:00:03.8]} 70... Qc2+ {[%clk 0:01:09.9]}
71. Ke3 {[%clk 0:00:04.1]} 71... Qc1+ {[%clk 0:01:09.4]} 72. Ke4 {[%clk
0:00:04.4]} 72... Qe1+ {[%clk 0:01:08.5]} 73. Kf3 {[%clk 0:00:04.6]} 73... Qf1+
{[%clk 0:01:06.6]} 74. Ke4 {[%clk 0:00:04.9]} 74... Qf5+ {[%clk 0:01:06.4]} 75.
Ke3 {[%clk 0:00:05.2]} 75... Qe5+ {[%clk 0:01:06.6]} 76. Qxe5+ {[%clk
0:00:05.3]} 76... Kxe5 {[%clk 0:01:07.5]} 1/2-1/2